fUSD/lending_fUSD_20241110
["ID","MTS","AMOUNT","RATE_DAILY","PERIOD"]
[341904988,1731277861955,-500.0,0.0001472,2]
[341904989,1731277861969,-500.0,0.0001472,2]
[341904990,1731277861983,-616.56,0.0001472,2]
[341904991,1731277861995,-616.56,0.0001472,2]
[341904992,1731277862009,-11038.89,0.0001472,2]
[341904993,1731277862029,-616.56,0.0001472,2]
[341904994,1731277862042,-11038.89,0.0001472,2]
[341904995,1731277862055,-616.56,0.0001472,2]
[341904996,1731277862068,-10049.06,0.0001472,2]
[341904997,1731277862081,-2627.99,0.0001472,2]
[341904998,1731277862094,-2627.99,0.0001472,2]
[341904999,1731277862107,-2627.99,0.0001472,2]
[341905000,1731277862118,-2627.99,0.0001472,2]
[341905001,1731277862129,-1444.32,0.0001472,2]
[341905002,1731277862142,-1444.32,0.0001472,2]
[341905003,1731277862155,-1444.32,0.0001472,2]
[341905004,1731277862168,-3418.69,0.0001472,2]
[341905005,1731277862181,-1444.32,0.0001472,2]
[341905006,1731277862194,-500.0,0.0001472,2]
[341905007,1731277862209,-3418.69,0.0001472,2]
[341905008,1731277862222,-500.0,0.0001472,2]
[341905009,1731277862234,-500.0,0.0001472,2]
[341905010,1731277862248,-500.0,0.0001472,2]
[341905011,1731277862266,-500.0,0.0001472,2]
[341905012,1731277862279,-500.0,0.0001472,2]
[341905013,1731277862292,-500.0,0.0001472,2]
[341905014,1731277862306,-8139.44,0.0001472,2]
[341905015,1731277862319,-500.0,0.0001472,2]
[341905016,1731277862333,-8139.44,0.0001472,2]
[341905017,1731277862348,-614.53,0.0001472,2]
[341905018,1731277862361,-500.0,0.0001472,2]
[341905019,1731277862374,-500.0,0.0001472,2]
[341905020,1731277862385,-936.16,0.0001472,2]
[341905021,1731277862395,-936.16,0.0001472,2]
[341905022,1731277862407,-936.16,0.0001472,2]
[341905023,1731277862420,-936.16,0.0001472,2]
[341905024,1731277862434,-4910.64,0.0001472,2]
[341905025,1731277862447,-4910.64,0.0001472,2]
[341905026,1731277862462,-690.64,0.0001472,2]
[341905027,1731277862473,-690.64,0.0001472,2]
[341905028,1731277862483,-690.64,0.0001472,2]
[341905029,1731277862495,-690.64,0.0001472,2]
[341905030,1731277862509,-610.07,0.0001472,2]
[341905031,1731277862523,-175.791701,0.0001472,2]
[341905032,1731277862534,-535.92,0.0001472,2]
[341905033,1731277862548,-535.92,0.0001472,2]
[341905034,1731277862559,-3542.66,0.0001472,2]
[341905035,1731277862571,-3542.66,0.0001472,2]
[341905036,1731277862588,-3212.68,0.0001472,2]
[341905037,1731277862600,-3212.68,0.0001472,2]
[341905038,1731277862611,-1548.58,0.0001472,2]
[341905039,1731277862626,-3212.68,0.0001472,2]
[341905040,1731277862638,-1548.58,0.0001472,2]
[341905041,1731277862649,-3212.68,0.0001472,2]
[341905042,1731277862660,-151.0,0.0001472,2]
[341905043,1731277862672,-814.47,0.0001472,2]
[341905044,1731277862683,-500.0,0.0001472,2]
[341905045,1731277862695,-814.47,0.0001472,2]
[341905046,1731277862706,-500.0,0.0001472,2]
[341905047,1731277862718,-500.0,0.0001472,2]
[341905048,1731277862730,-500.0,0.0001472,2]
[341905049,1731277862741,-500.0,0.0001472,2]
[341905050,1731277862753,-500.0,0.0001472,2]
[341905051,1731277862767,-500.0,0.0001472,2]
[341905052,1731277862778,-500.0,0.0001472,2]
[341905053,1731277862790,-536.94953628,0.0001472,2]
[341905054,1731277862802,-1540.59,0.0001472,2]
[341905055,1731277862814,-1540.59,0.0001472,2]
[341905056,1731277862827,-687.46,0.0001472,2]
[341905057,1731277862838,-687.46,0.0001472,2]
[341905058,1731277862850,-536.49,0.0001472,2]
[341905059,1731277862862,-687.46,0.0001472,2]
[341905060,1731277862875,-687.46,0.0001472,2]
[341905061,1731277862887,-1474.27,0.0001472,2]
[341905062,1731277862899,-500.0,0.0001472,2]
[341905063,1731277862917,-1474.27,0.0001472,2]
[341905064,1731277862929,-500.0,0.0001472,2]
[341905065,1731277862940,-500.0,0.0001472,2]
[341905066,1731277862952,-500.0,0.0001472,2]
[341905067,1731277862964,-3014.98,0.0001472,2]
[341905068,1731277862976,-3014.98,0.0001472,2]
[341905069,1731277862988,-1865.42,0.0001472,2]
[341905070,1731277863000,-1865.42,0.0001472,2]
[341905071,1731277863013,-500.0,0.0001472,2]
[341905072,1731277863025,-500.0,0.0001472,2]
[341905073,1731277863036,-509.77954246,0.0001472,2]
[341905074,1731277863047,-8633.46,0.0001472,2]
[341905075,1731277863059,-8633.46,0.0001472,2]
[341905076,1731277863071,-500.0,0.0001472,2]
[341905077,1731277863084,-500.0,0.0001472,2]
[341905078,1731277863096,-500.0,0.0001472,2]
[341905079,1731277863107,-500.0,0.0001472,2]
[341905080,1731277863119,-500.0,0.0001472,2]
[341905081,1731277863131,-500.0,0.0001472,2]
[341905082,1731277863142,-500.0,0.0001472,2]
[341905083,1731277863154,-500.0,0.0001472,2]
[341905084,1731277863166,-2620.47,0.0001472,2]
[341905085,1731277863178,-500.0,0.0001472,2]
[341905086,1731277863190,-2620.47,0.0001472,2]
[341905087,1731277863202,-500.0,0.0001472,2]
[341905088,1731277863215,-2620.47,0.0001472,2]
[341905089,1731277863227,-2620.47,0.0001472,2]
[341905090,1731277863238,-500.0,0.0001472,2]
[341905091,1731277863253,-500.0,0.0001472,2]
[341905092,1731277863267,-791.14,0.0001472,2]
[341905093,1731277863280,-791.14,0.0001472,2]
[341905094,1731277863293,-823.56,0.0001472,2]
[341905095,1731277863306,-823.56,0.0001472,2]
[341905096,1731277863318,-500.0,0.0001472,2]
[341905097,1731277863331,-500.0,0.0001472,2]
[341905098,1731277863343,-500.0,0.0001472,2]
[341905099,1731277863355,-500.0,0.0001472,2]
[341905100,1731277863368,-5594.85,0.0001472,2]
[341905101,1731277863380,-5594.85,0.0001472,2]
[341905102,1731277863393,-500.0,0.0001472,2]
[341905103,1731277863405,-599.07,0.0001472,2]
[341905104,1731277863417,-599.07,0.0001472,2]
[341905105,1731277863429,-2824.34,0.0001472,2]
[341905106,1731277863441,-2824.34,0.0001472,2]
[341905107,1731277863453,-500.0,0.0001472,2]
[341905108,1731277863465,-500.0,0.0001472,2]
[341905109,1731277863477,-500.0,0.0001472,2]
[341905110,1731277863489,-500.0,0.0001472,2]
[341905111,1731277863500,-500.0,0.0001472,2]
[341905112,1731277863513,-500.0,0.0001472,2]
[341905113,1731277863524,-150.111107,0.00014721,2]
[341905114,1731277863537,-150.111107,0.00014721,2]
[341905115,1731277863552,-150.111107,0.00014721,2]
[341905116,1731277863564,-150.111107,0.00014721,2]
[341905117,1731277863577,-150.111107,0.00014721,2]
[341905118,1731277863589,-150.111107,0.00014721,2]
[341905119,1731277863602,-150.111107,0.00014721,2]
[341905120,1731277863613,-150.111107,0.00014721,2]
[341905121,1731277863626,-150.111107,0.00014721,2]
[341905122,1731277863639,-150.111107,0.00014721,2]
[341905123,1731277863651,-150.111107,0.00014721,2]
[341905124,1731277863664,-529.41632225,0.00014721,2]
[341905125,1731277863676,-151.0,0.00014721,2]
[341905126,1731277863688,-153.999884,0.00014721,2]
[341905127,1731277863699,-516.99335626,0.00014721,2]
[341905128,1731277863711,-500.0,0.00014721,2]
[341905129,1731277863722,-151.0,0.00014721,2]
[341905130,1731277863734,-151.0,0.00014721,2]
[341905131,1731277863746,-151.0,0.00014721,2]
[341905132,1731277863757,-152.890364,0.00014721,2]
[341905133,1731277863771,-500.52829262,0.00014721,2]
[341905134,1731277863783,-500.0,0.00014721,2]
[341905135,1731277863795,-151.0,0.00014721,2]
[341905136,1731277863806,-151.0,0.00014721,2]
[341905137,1731277863818,-151.0,0.00014721,2]
[341905138,1731277863829,-151.0,0.00014721,2]
[341905139,1731277863841,-151.0,0.00014721,2]
[341905140,1731277863852,-151.0,0.00014721,2]
[341905141,1731277863864,-294.041993,0.00014721,2]
[341905142,1731277863875,-2000.0,0.00014721,2]
[341905143,1731277863886,-200.0,0.00014721,2]
[341905144,1731277863897,-500.0,0.00014721,2]
[341905145,1731277863908,-151.0,0.00014721,2]
[341905146,1731277863920,-1036.51,0.00014721,2]
[341905147,1731277863932,-536.81560058,0.00014721,2]
[341905148,1731277863943,-500.0,0.00014721,2]
[341905149,1731277863965,-500.0,0.00014721,2]
[341905150,1731277863981,-151.0,0.00014721,2]
[341905151,1731277863995,-151.0,0.00014721,2]
[341905152,1731277864008,-151.0,0.00014721,2]
[341905153,1731277864023,-151.0,0.00014721,2]
[341905154,1731277864036,-500.0,0.00014721,2]
[341905155,1731277864049,-500.0,0.00014721,2]
[341905156,1731277864061,-500.0,0.00014721,2]
[341905157,1731277864074,-500.0,0.00014721,2]
[341905158,1731277864087,-500.0,0.00014721,2]
[341905159,1731277864099,-500.0,0.00014721,2]
[341905160,1731277864111,-500.0,0.00014721,2]
[341905161,1731277864123,-507.8762366,0.00014721,2]
[341905162,1731277864135,-500.0,0.00014721,2]
[341905163,1731277864147,-500.0,0.00014721,2]
[341905164,1731277864159,-500.0,0.00014721,2]
[341905165,1731277864171,-500.0,0.00014721,2]
[341905166,1731277864183,-500.0,0.00014721,2]
[341905167,1731277864194,-500.0,0.00014721,2]
[341905168,1731277864206,-500.0,0.00014721,2]
[341905169,1731277864217,-500.30691987,0.00014721,2]
[341905170,1731277864229,-500.0,0.00014721,2]
[341905171,1731277864240,-500.0,0.00014721,2]
[341905172,1731277864251,-250.0,0.00014721,2]
[341905173,1731277864263,-500.0,0.00014721,2]
[341905174,1731277864274,-500.0,0.00014721,2]
[341905175,1731277864285,-500.0,0.00014721,2]
[341905176,1731277864297,-500.0,0.00014721,2]
[341905177,1731277864308,-607.25,0.00014721,2]
[341905178,1731277864320,-659.92,0.00014721,2]
[341905179,1731277864331,-151.0,0.00014721,2]
[341905180,1731277864342,-151.0,0.00014721,2]
[341905181,1731277864354,-151.0,0.00014721,2]
[341905182,1731277864365,-151.0,0.00014721,2]
[341905183,1731277864376,-151.0,0.00014721,2]
[341905184,1731277864387,-154.111369,0.00014721,2]
[341905185,1731277864398,-151.0,0.00014721,2]
[341905186,1731277864409,-151.0,0.00014721,2]
[341905187,1731277864420,-151.0,0.00014721,2]
[341905188,1731277864431,-217.26998,0.00014721,2]
[341905189,1731277864443,-537.80749063,0.00014721,2]
[341905190,1731277864455,-500.0,0.00014721,2]
[341905191,1731277864466,-500.0,0.00014721,2]
[341905192,1731277864477,-500.0,0.00014721,2]
[341905193,1731277864489,-740.11,0.00014721,2]
[341905194,1731277864500,-500.0,0.00014721,2]
[341905195,1731277864514,-151.0,0.00014721,2]
[341905196,1731277864525,-500.0,0.00014721,2]
[341905197,1731277864536,-151.0,0.00014721,2]
[341905198,1731277864547,-151.0,0.00014721,2]
[341905199,1731277864562,-156.372962,0.00014721,2]
[341905200,1731277864573,-500.0,0.00014721,2]
[341905201,1731277864584,-1661.96,0.00014721,2]
[341905202,1731277864596,-500.0,0.00014721,2]
[341905203,1731277864606,-500.0,0.00014721,2]
[341905204,1731277864617,-500.0,0.00014721,2]
[341905205,1731277864629,-707.13,0.00014721,2]
[341905206,1731277864640,-500.0,0.00014721,2]
[341905207,1731277864651,-500.0,0.00014721,2]
[341905208,1731277864663,-500.0,0.00014721,2]
[341905209,1731277864675,-461.178536,0.00014721,2]
[341905210,1731277864687,-461.178536,0.00014721,2]
[341905211,1731277864698,-461.178536,0.00014721,2]
[341905212,1731277864709,-461.178536,0.00014721,2]
[341905213,1731277865074,-461.178536,0.00014721,2]
[341905214,1731277865106,-500.0,0.00014721,2]
[341905215,1731277865121,-461.178536,0.00014721,2]
[341905216,1731277865130,-461.178536,0.00014721,2]
[341905217,1731277865140,-461.178536,0.00014721,2]
[341905218,1731277865150,-500.0,0.00014721,2]
[341905219,1731277865159,-649.22,0.00014721,2]
[341905220,1731277865168,-500.0,0.00014721,2]
[341905221,1731277865178,-1207.49,0.00014721,2]
[341905222,1731277865186,-500.0,0.00014721,2]
[341905223,1731277865196,-500.0,0.00014721,2]
[341905224,1731277865205,-500.0,0.00014721,2]
[341905225,1731277865214,-596.29,0.00014721,2]
[341905226,1731277865223,-687.06,0.00014721,2]
[341905227,1731277865232,-151.0,0.00014721,2]
[341905228,1731277865241,-500.0,0.00014721,2]
[341905229,1731277865250,-151.0,0.00014721,2]
[341905230,1731277865259,-151.0,0.00014721,2]
[341905231,1731277865274,-164.356048,0.00014721,2]
[341905232,1731277865284,-500.0,0.00014721,2]
[341905233,1731277865294,-229.196508,0.00014721,2]
[341905234,1731277865303,-585.22,0.00014721,2]
[341905235,1731277865312,-1320.36,0.00014721,2]
[341905236,1731277865322,-500.0,0.00014721,2]
[341905237,1731277865331,-500.0,0.00014721,2]
[341905238,1731277865341,-159.106259,0.00014721,2]
[341905239,1731277865350,-500.0,0.00014721,2]
[341905240,1731277865360,-633.41,0.00014721,2]
[341905241,1731277865369,-757.9,0.00014721,2]
[341905242,1731277865378,-151.0,0.00014721,2]
[341905243,1731277865388,-151.0,0.00014721,2]
[341905244,1731277865397,-892.9,0.00014721,2]
[341905245,1731277865406,-151.0,0.00014721,2]
[341905246,1731277865416,-151.0,0.00014721,2]
[341905247,1731277865426,-151.0,0.00014721,2]
[341905248,1731277865435,-500.0,0.00014721,2]
[341905249,1731277865444,-500.0,0.00014721,2]
[341905250,1731277865453,-500.0,0.00014721,2]
[341905251,1731277865462,-500.0,0.00014721,2]
[341905252,1731277865472,-500.0,0.00014721,2]
[341905253,1731277865481,-500.0,0.00014721,2]
[341905254,1731277865491,-500.0,0.00014721,2]
[341905255,1731277865500,-542.84,0.00014721,2]
[341905256,1731277865509,-500.0,0.00014721,2]
[341905257,1731277865522,-202.797666,0.00014721,2]
[341905258,1731277865531,-202.797666,0.00014721,2]
[341905259,1731277865541,-202.797666,0.00014721,2]
[341905260,1731277865551,-202.797666,0.00014721,2]
[341905261,1731277865563,-202.797666,0.00014721,2]
[341905262,1731277865573,-202.797666,0.00014721,2]
[341905263,1731277865582,-202.797666,0.00014721,2]
[341905264,1731277865591,-202.797666,0.00014721,2]
[341905265,1731277865600,-202.797666,0.00014721,2]
[341905266,1731277865609,-500.0,0.00014721,2]
[341905267,1731277865618,-202.797666,0.00014721,2]
[341905268,1731277865627,-500.0,0.00014721,2]
[341905269,1731277865638,-500.0,0.00014721,2]
[341905270,1731277865647,-216.72788,0.00014721,2]
[341905271,1731277865658,-541.21,0.00014721,2]
[341905272,1731277865667,-500.0,0.00014721,2]
[341905273,1731277865677,-500.0,0.00014721,2]
[341905274,1731277865686,-500.0,0.00014721,2]
[341905275,1731277865695,-500.0,0.00014721,2]
[341905276,1731277865704,-500.0,0.00014721,2]
[341905277,1731277865713,-295.418,0.00014721,2]
[341905278,1731277865722,-500.0,0.00014721,2]
[341905279,1731277865731,-500.0,0.00014721,2]
[341905280,1731277865741,-1324.84,0.00014721,2]
[341905281,1731277865751,-1765.88,0.00014721,2]
[341905282,1731277865760,-558.800688,0.00014721,2]
[341905283,1731277865771,-558.800688,0.00014721,2]
[341905284,1731277865779,-558.800688,0.00014721,2]
[341905285,1731277865788,-558.800688,0.00014721,2]
[341905286,1731277865797,-500.0,0.00014721,2]
[341905287,1731277865807,-558.800688,0.00014721,2]
[341905288,1731277865816,-558.800688,0.00014721,2]
[341905289,1731277865825,-558.800688,0.00014721,2]
[341905290,1731277865834,-1822.38,0.00014721,2]
[341905291,1731277865844,-558.800688,0.00014721,2]
[341905292,1731277865853,-500.0,0.00014721,2]
[341905293,1731277865862,-792.46,0.00014721,2]
[341905294,1731277865871,-500.0,0.00014721,2]
[341905295,1731277865881,-500.0,0.00014721,2]
[341905296,1731277865890,-500.0,0.00014721,2]
[341905297,1731277865899,-500.0,0.00014721,2]
[341905298,1731277865908,-500.0,0.00014721,2]
[341905299,1731277865917,-1021.04,0.00014721,2]
[341905300,1731277865927,-514.64,0.00014721,2]
[341905301,1731277865936,-151.0,0.00014721,2]
[341905302,1731277865945,-202.82681,0.00014721,2]
[341905303,1731277865954,-189.705288,0.00014721,2]
[341905304,1731277865963,-189.705288,0.00014721,2]
[341905305,1731277865973,-189.705288,0.00014721,2]
[341905306,1731277865982,-1314.69,0.00014721,2]
[341905307,1731277865992,-189.705288,0.00014721,2]
[341905308,1731277866001,-189.705288,0.00014721,2]
[341905309,1731277866014,-189.705286,0.00014721,2]
[341905310,1731277866023,-517.76,0.00014721,2]
[341905311,1731277866032,-3457.935323,0.00014721,2]
[341905312,1731277866041,-3457.935323,0.00014721,2]
[341905313,1731277866051,-3457.935323,0.00014721,2]
[341905314,1731277866060,-3457.935323,0.00014721,2]
[341905315,1731277866069,-3457.935323,0.00014721,2]
[341905316,1731277866079,-612.01,0.00014721,2]
[341905317,1731277866088,-3457.935323,0.00014721,2]
[341905318,1731277866097,-3457.935323,0.00014721,2]
[341905319,1731277866106,-3457.935323,0.00014721,2]
[341905320,1731277866115,-3457.935323,0.00014721,2]
[341905321,1731277866124,-765.39,0.00014721,2]
[341905322,1731277866134,-3457.93533,0.00014721,2]
[341905323,1731277866144,-2552.19,0.00014721,2]
[341905324,1731277866153,-1201.03,0.00014721,2]
[341905325,1731277866162,-151.0,0.00014721,2]
[341905326,1731277866172,-299.498279,0.00014721,2]
[341905327,1731277866181,-500.0,0.00014721,2]
[341905328,1731277866191,-500.0,0.00014721,2]
[341905329,1731277866201,-500.0,0.00014721,2]
[341905330,1731277866210,-500.0,0.00014721,2]
[341905331,1731277866219,-689.82,0.00014721,2]
[341905332,1731277866228,-500.0,0.00014721,2]
[341905333,1731277866238,-500.0,0.00014721,2]
[341905334,1731277866247,-151.0,0.00014721,2]
[341905335,1731277866256,-151.0,0.00014721,2]
[341905336,1731277866270,-151.0,0.00014721,2]
[341905337,1731277866279,-166.62,0.00014721,2]
[341905338,1731277866289,-500.0,0.00014721,2]
[341905339,1731277866298,-4989.3578,0.00014721,2]
[341905340,1731277866307,-525.52,0.00014721,2]
[341905341,1731277866316,-500.0,0.00014721,2]
[341905342,1731277866325,-4989.357804,0.00014721,2]
[341905343,1731277866334,-1414.65,0.00014721,2]
[341905344,1731277866344,-500.0,0.00014721,2]
[341905345,1731277866353,-500.0,0.00014721,2]
[341905346,1731277866363,-170.851126,0.00014721,2]
[341905347,1731277866372,-170.851126,0.00014721,2]
[341905348,1731277866381,-170.851126,0.00014721,2]
[341905349,1731277866391,-170.851126,0.00014721,2]
[341905350,1731277866400,-2163.41,0.00014721,2]
[341905351,1731277866409,-500.0,0.00014721,2]
[341905352,1731277866418,-170.851126,0.00014721,2]
[341905353,1731277866427,-170.851126,0.00014721,2]
[341905354,1731277866437,-170.851126,0.00014721,2]
[341905355,1731277866446,-170.851126,0.00014721,2]
[341905356,1731277866455,-224.95569,0.00014721,2]
[341905357,1731277866465,-860.47,0.00014721,2]
[341905358,1731277866475,-2171.84,0.00014721,2]
[341905359,1731277866484,-224.955698,0.00014721,2]
[341905360,1731277866494,-183.17695692,0.00014721,2]
[341905361,1731277866503,-4473.22,0.00014721,2]
[341905362,1731277866515,-547.9,0.00014721,2]
[341905363,1731277866523,-1574.12,0.00014721,2]
[341905364,1731277866532,-500.0,0.00014721,2]
[341905365,1731277866542,-500.0,0.00014721,2]
[341905366,1731277866554,-500.0,0.00014721,2]
[341905367,1731277866563,-500.0,0.00014721,2]
[341905368,1731277866571,-500.0,0.00014721,2]
[341905369,1731277866581,-500.0,0.00014721,2]
[341905370,1731277866590,-500.0,0.00014721,2]
[341905371,1731277866599,-530.33,0.00014721,2]
[341905372,1731277866608,-11013.71,0.00014721,2]
[341905373,1731277866617,-1768.63,0.00014721,2]
[341905374,1731277866626,-500.0,0.00014721,2]
[341905375,1731277866637,-1446.66,0.00014721,2]
[341905376,1731277866646,-769.5,0.00014721,2]
[341905377,1731277866656,-696.7,0.00014721,2]
[341905378,1731277866665,-1394.49,0.00014721,2]
[341905379,1731277866675,-1398.62,0.00014721,2]
[341905380,1731277866684,-738.9,0.00014721,2]
[341905381,1731277866693,-13865.96,0.00014721,2]
[341905382,1731277866703,-6186.91,0.00014721,2]
[341905383,1731277866712,-4322.66,0.00014721,2]
[341905384,1731277866722,-1424.58,0.00014721,2]
[341905385,1731277866731,-971.22,0.00014721,2]
[341905386,1731277866740,-5620.44,0.00014721,2]
[341905387,1731277866749,-500.0,0.00014721,2]
[341905388,1731277866759,-1744.79,0.00014721,2]
[341905389,1731277866772,-1162.11,0.00014721,2]
[341905390,1731277866781,-398.1962716,0.00014721,2]
[341905391,1731277866791,-865.3,0.00014721,2]
[341905392,1731277866801,-11378.24,0.00014721,2]
[341905393,1731277866810,-1261.47,0.00014721,2]
[341905394,1731277866820,-12931.16,0.00014721,2]
[341905395,1731277866829,-500.0,0.00014721,2]
[341905396,1731277866839,-500.0,0.00014721,2]
[341905397,1731277866848,-505.21,0.00014721,2]
[341905398,1731277866858,-1203.76,0.00014721,2]
[341905399,1731277866867,-500.0,0.00014721,2]
[341905400,1731277866876,-10614.66,0.00014721,2]
[341905401,1731277866886,-3232.69,0.00014721,2]
[341905402,1731277866895,-2398.75,0.00014721,2]
[341905403,1731277866905,-1929.9,0.00014721,2]
[341905404,1731277866914,-500.0,0.00014721,2]
[341905405,1731277866924,-500.0,0.00014721,2]
[341905406,1731277866934,-863.8,0.00014721,2]
[341905407,1731277866943,-558.04,0.00014721,2]
[341905408,1731277866952,-1044.6,0.00014721,2]
[341905409,1731277866962,-1770.79,0.00014721,2]
[341905410,1731277866971,-7037.49,0.00014721,2]
[341905411,1731277866981,-676.88,0.00014721,2]
[341905412,1731277866990,-979.8,0.00014721,2]
[341905413,1731277866999,-1613.45,0.00014721,2]
[341905414,1731277867008,-500.0,0.00014721,2]
[341905415,1731277867021,-500.0,0.00014721,2]
[341905416,1731277867030,-500.0,0.00014721,2]
[341905417,1731277867040,-825.14,0.00014721,2]
[341905418,1731277867049,-539.96,0.00014721,2]
[341905419,1731277867059,-882.11,0.00014721,2]
[341905420,1731277867068,-500.0,0.00014721,2]
[341905421,1731277867078,-2101.38,0.00014721,2]
[341905422,1731277867088,-500.0,0.00014721,2]
[341905423,1731277867097,-1663.13,0.00014721,2]
[341905424,1731277867107,-720.43,0.00014721,2]
[341905425,1731277867116,-239.1669696,0.00014721,2]
[341905426,1731277867461,-372.9630304,0.00014721,2]
[341905427,1731277867471,-7751.44123301,0.00014721,2]
[341905428,1731277867505,-307.82876699,0.00014721,2]
[341905429,1731277867518,-500.0,0.00014721,2]
[341905430,1731277867528,-500.0,0.00014721,2]
[341905431,1731277867537,-11037.94,0.00014721,2]
[341905432,1731277867546,-1997.43,0.00014721,2]
[341905433,1731277867560,-373.83473506,0.00014721,2]
[341905434,1731277867569,-3328.94,0.00014721,2]
[341905435,1731277867579,-1241.72,0.00014721,2]
[341905436,1731277867589,-2132.9,0.00014721,2]
[341905437,1731277867598,-2744.18,0.00014721,2]
[341905438,1731277867608,-1857.24,0.00014721,2]
[341905439,1731277867617,-1235.06,0.00014721,2]
[341905440,1731277867627,-9149.24,0.00014721,2]
[341905441,1731277867637,-500.0,0.00014721,2]
[341905442,1731277867647,-500.0,0.00014721,2]
[341905443,1731277867657,-11038.89,0.00014721,2]
[341905444,1731277867666,-616.56,0.00014721,2]
[341905445,1731277867675,-10049.06,0.00014721,2]
[341905446,1731277867685,-2627.99,0.00014721,2]
[341905447,1731277867694,-1444.32,0.00014721,2]
[341905448,1731277867704,-3418.69,0.00014721,2]
[341905449,1731277867713,-500.0,0.00014721,2]
[341905450,1731277867723,-8139.44,0.00014721,2]
[341905451,1731277867732,-614.53,0.00014721,2]
[341905452,1731277867742,-500.0,0.00014721,2]
[341905453,1731277867751,-936.16,0.00014721,2]
[341905454,1731277867760,-4910.64,0.00014721,2]
[341905455,1731277867773,-690.64,0.00014721,2]
[341905456,1731277867783,-610.07,0.00014721,2]
[341905457,1731277867793,-535.92,0.00014721,2]
[341905458,1731277867802,-3542.66,0.00014721,2]
[341905459,1731277867812,-1548.58,0.00014721,2]
[341905460,1731277867821,-3212.68,0.00014721,2]
[341905461,1731277867832,-500.0,0.00014721,2]
[341905462,1731277867841,-500.0,0.00014721,2]
[341905463,1731277867851,-1540.59,0.00014721,2]
[341905464,1731277867860,-536.49,0.00014721,2]
[341905465,1731277867870,-687.46,0.00014721,2]
[341905466,1731277867879,-500.0,0.00014721,2]
[341905467,1731277867888,-3014.98,0.00014721,2]
[341905468,1731277867898,-1865.42,0.00014721,2]
[341905469,1731277867907,-8633.46,0.00014721,2]
[341905470,1731277867916,-500.0,0.00014721,2]
[341905471,1731277867926,-500.0,0.00014721,2]
[341905472,1731277867935,-500.0,0.00014721,2]
[341905473,1731277867944,-2620.47,0.00014721,2]
[341905474,1731277867954,-500.0,0.00014721,2]
[341905475,1731277867963,-500.0,0.00014721,2]
[341905476,1731277867973,-5594.85,0.00014721,2]
[341905477,1731277867982,-500.0,0.00014721,2]
[341905478,1731277867991,-2824.34,0.00014721,2]
[341905479,1731277868001,-500.0,0.00014721,2]
[341905480,1731277868200,-500.0,0.00014721,2]
[341905481,1731277868214,-151.0,0.00014722,2]
[341905482,1731277868224,-151.0,0.00014722,2]
[341905483,1731277868234,-151.652402,0.00014722,2]
[341905484,1731277868244,-151.0,0.00014722,2]
[341905485,1731277868253,-151.0,0.00014722,2]
[341905486,1731277868265,-151.0,0.00014722,2]
[341905487,1731277868275,-416.454881,0.00014722,2]